fUSD/lending_fUSD_20250530
["ID","MTS","AMOUNT","RATE_DAILY","PERIOD"]
[363228062,1748631041726,-300.0,0.00023419,2]
[363228065,1748631041735,-6364.28950823,0.00023451,2]
[363228067,1748631041744,-585.0,0.00023507,2]
[363228069,1748631041753,-941.0,0.00023698,2]
[363228071,1748631041762,-1314.0,0.00023698,2]
[363228072,1748631041772,-810.0,0.00023698,2]
[363228074,1748631041781,-634.0,0.00023698,2]
[363228076,1748631041791,-1466.0,0.00023698,2]
[363228078,1748631041800,-1268.0,0.00023698,2]
[363228080,1748631041809,-588.0,0.00023698,2]
[363228082,1748631041819,-924.0,0.00023698,2]
[363228084,1748631041828,-556.0,0.00023698,2]
[363228086,1748631041837,-4068.0,0.00023698,2]
[363228088,1748631041846,-6929.0,0.00023698,2]
[363228090,1748631041858,-848.0,0.00023698,2]
[363228092,1748631041867,-887.398,0.00023698,2]
[363228094,1748631041876,-180.631,0.00023698,2]
[363228096,1748631041885,-284.369,0.00023698,2]
[363228098,1748631041894,-2000.0,0.00023724,2]
[363228100,1748631041903,-743.34,0.00023836,2]
[363228102,1748631041912,-6364.28950823,0.00023913,2]
[363228104,1748631041921,-223.0315306,0.00023933,2]
[363228106,1748631041930,-172.44,0.00023967,2]
[363228108,1748631041940,-1103.26146452,0.0002401,2]
[363228110,1748631041949,-1058.16277383,0.0002401,2]
[363228112,1748631041958,-1038.44310117,0.0002401,2]
[363228114,1748631041967,-1102.53717456,0.0002401,2]
[363228116,1748631041977,-1004.05755863,0.0002401,2]
[363228118,1748631041987,-2434.1892169,0.00024014,2]
[363228120,1748631041996,-914.89,0.0002405,2]
[363228122,1748631042005,-3731.72439791,0.00024072,10]
[363228124,1748631042014,-167.97,0.00024109,2]
[363228126,1748631042023,-548.16,0.00024134,2]
[363228128,1748631042034,-21098.29,0.00024174,2]
[363228130,1748631042044,-1406.96671968,0.00024272,2]
[363228132,1748631042054,-6364.28950823,0.00024375,2]
[363228134,1748631042064,-1100.17501065,0.00024399,10]
[363228136,1748631042074,-9972.67143475,0.00024438,2]
[363228138,1748631042084,-162.380719,0.00024525,2]
[363228140,1748631042093,-864.3600952,0.00024525,2]
[363228142,1748631042104,-1156.41848616,0.00024526,2]
[363228144,1748631042114,-150.0,0.00024578,2]
[363228146,1748631042125,-150.0,0.00024578,2]
[363228148,1748631042135,-150.0,0.00024605,2]
[363228150,1748631042144,-150.0,0.00024605,2]
[363228152,1748631042153,-200.0,0.00024633,2]
[363228154,1748631042163,-207.42952703,0.00024633,2]
[363228156,1748631042172,-150.0,0.00024658,2]
[363228158,1748631042182,-166.66,0.00024658,2]
[363228159,1748631042191,-1000.0,0.00024658,2]
[363228161,1748631042200,-163.61248433,0.00024699,2]
[363228164,1748631042210,-2351.0,0.00024732,2]
[363228166,1748631042219,-500.0,0.0002477,2]
[363228167,1748631042229,-500.0,0.00024773,2]
[363228170,1748631042239,-504.78582876,0.00024773,2]
[363228172,1748631042249,-217.62485625,0.00024773,2]
[363228174,1748631042259,-500.51754316,0.00024773,2]
[363228176,1748631042269,-500.55802474,0.00024773,2]
[363228178,1748631042279,-160.56108942,0.00024799,2]
[363228180,1748631042288,-188.25955503,0.00024799,2]
[363228182,1748631042298,-241.63499245,0.00024799,2]
[363228184,1748631042307,-500.0,0.00024799,2]
[363228186,1748631042317,-500.0,0.00024799,2]
[363228188,1748631042327,-500.0,0.00024799,2]
[363228190,1748631042337,-500.0,0.00024799,2]
[363228192,1748631042347,-500.0,0.00024799,2]
[363228194,1748631042360,-500.0,0.00024799,2]
[363228196,1748631042371,-443.66439824,0.00024799,2]
[363228198,1748631042382,-500.0,0.00024799,2]
[363228200,1748631042392,-500.0,0.00024799,2]
[363228202,1748631042402,-500.0,0.00024799,2]
[363228204,1748631042412,-500.0,0.00024799,2]
[363228206,1748631042422,-500.0,0.00024799,2]
[363228208,1748631042432,-500.0,0.00024799,2]
[363228210,1748631042442,-500.0,0.00024799,2]
[363228212,1748631042452,-500.0,0.00024799,2]
[363228214,1748631042462,-500.0,0.00024799,2]
[363228216,1748631042472,-500.0,0.00024799,2]
[363228218,1748631042481,-500.0,0.00024799,2]
[363228220,1748631042491,-500.0,0.00024799,2]
[363228222,1748631042501,-500.0,0.00024799,2]
[363228225,1748631042511,-500.0,0.00024799,2]
[363228227,1748631042521,-500.0,0.00024799,2]
[363228229,1748631042531,-500.0,0.00024799,2]
[363228230,1748631042541,-500.0,0.00024799,2]
[363228232,1748631042550,-500.0,0.00024799,2]
[363228235,1748631042561,-500.0,0.00024799,2]
[363228237,1748631042571,-500.0,0.00024799,2]
[363228239,1748631042581,-500.0,0.00024799,2]
[363228241,1748631042590,-500.0,0.00024799,2]
[363228243,1748631042602,-500.0,0.00024799,2]
[363228245,1748631042612,-500.0,0.00024799,2]
[363228247,1748631042621,-407.71343233,0.00024799,2]
[363228249,1748631042631,-500.0,0.00024799,2]
[363228251,1748631042641,-500.0,0.00024799,2]
[363228253,1748631042651,-500.0,0.00024799,2]
[363228255,1748631042660,-274.49975684,0.00024799,2]
[363228257,1748631042670,-500.0,0.00024799,2]
[363228259,1748631042679,-500.0,0.00024799,2]
[363228261,1748631042689,-500.0,0.00024799,2]
[363228263,1748631042699,-500.0,0.00024799,2]
[363228265,1748631042708,-500.0,0.00024799,2]
[363228267,1748631042718,-550.0,0.00024799,2]
[363228269,1748631042729,-500.0,0.00024799,2]
[363228271,1748631042739,-500.0,0.00024799,2]
[363228273,1748631042750,-500.0,0.00024799,2]
[363228275,1748631042761,-500.0,0.00024799,2]
[363228277,1748631042771,-500.0,0.00024799,2]
[363228279,1748631042782,-561.61268115,0.00024799,2]
[363228281,1748631042792,-500.0,0.00024799,2]
[363228283,1748631042802,-202.627945,0.000248,7]
[363228285,1748631042812,-202.627945,0.000248,7]
[363228287,1748631042822,-114715.668991,0.000248,3]
[363228289,1748631042831,-28678.9172478,0.00024835,3]
[363228291,1748631042841,-6364.28950823,0.00024836,2]
[363228293,1748631042851,-172.44,0.00024847,2]
[363228295,1748631042861,-28678.9172478,0.0002486,3]
[363228297,1748631042871,-3731.72439791,0.00024866,12]
[363228299,1748631042880,-500.0,0.00024873,2]
[363228301,1748631042890,-500.0,0.00024873,2]
[363228303,1748631042899,-501.41094564,0.00024873,2]
[363228305,1748631042910,-500.0,0.00024873,2]
[363228308,1748631042920,-500.0,0.00024873,2]
[363228310,1748631042930,-36005.4302,0.0002488,2]
[363228312,1748631042940,-1000.0,0.0002488,2]
[363228314,1748631042949,-202.627945,0.000249,7]
[363228316,1748631042959,-202.627945,0.000249,7]
[363228318,1748631042968,-25617.2827048,0.000249,3]
[363228320,1748631042978,-4269.54711747,0.00024914,3]
[363228322,1748631042988,-28678.9172478,0.00024948,3]
[363228324,1748631042997,-8539.09423494,0.00024948,3]
[363228326,1748631043007,-4269.54711747,0.00024949,3]
[363228328,1748631043017,-4269.54711747,0.00025136,3]
[363228330,1748631043027,-151.0,0.00025205,2]
[363228332,1748631043041,-6364.28950823,0.00025298,2]
[363228334,1748631043052,-280.0,0.000253,10]
[363228336,1748631043062,-231.28369723,0.00025302,2]
[363228338,1748631043073,-500.0,0.00025331,2]
[363228341,1748631043083,-167.97,0.00025479,2]
[363228343,1748631043092,-2434.1892169,0.000255,2]
[363228345,1748631043103,-4269.54711747,0.00025505,3]
[363228348,1748631043115,-425.7526,0.00025515,2]
[363228350,1748631043126,-8539.09423494,0.00025629,3]
[363228352,1748631043135,-3731.72439791,0.00025659,13]
[363228354,1748631043146,-28678.9172478,0.00025683,3]
[363228356,1748631043156,-4269.54711747,0.00025683,3]
[363228358,1748631043165,-152.0,0.00025753,2]
[363228360,1748631043174,-6364.28950823,0.0002576,2]
[363228362,1748631043184,-869.61,0.00025883,120]
[363228364,1748631043194,-168.3888056,0.00025894,2]
[363228366,1748631043203,-202.627945,0.00025918,7]
[363228368,1748631043213,-202.627945,0.00025918,7]
[363228370,1748631043222,-9972.67143475,0.00025977,2]
[363228372,1748631043231,-2000.0,0.00026,2]
[363228374,1748631043241,-500.0,0.00026017,2]
[363228376,1748631043250,-400.0,0.00026027,2]
[363228379,1748631043260,-500.0,0.00026056,2]
[363228381,1748631043270,-4269.54711747,0.00026084,3]
[363228384,1748631043279,-1357.189807,0.00026094,6]
[363228386,1748631043289,-303.25,0.00026212,2]
[363228388,1748631043299,-6364.28950823,0.00026221,2]
[363228390,1748631043309,-161.0,0.00026301,2]
[363228392,1748631043319,-914.89,0.00026314,2]
[363228394,1748631043329,-3731.72439791,0.00026452,15]
[363228396,1748631043339,-493.88267938,0.00026499,2]
[363228398,1748631043349,-5000.0,0.00026598,2]
[363228400,1748631043363,-239.84119403,0.00026671,2]
[363228402,1748631043373,-283.26,0.00026676,2]
[363228404,1748631043383,-6364.28950823,0.00026683,2]
[363228406,1748631043393,-4269.54711747,0.00026685,3]
[363228408,1748631043403,-12808.6413524,0.00026688,3]
[363228410,1748631043413,-630.0,0.00026698,2]
[363228412,1748631043424,-941.0,0.00026698,2]
[363228414,1748631043434,-1314.0,0.00026698,2]
[363228416,1748631043443,-801.0,0.00026698,2]
[363228418,1748631043454,-634.0,0.00026698,2]
[363228420,1748631043463,-1466.0,0.00026698,2]
[363228422,1748631043473,-1268.0,0.00026698,2]
[363228424,1748631043483,-588.0,0.00026698,2]
[363228426,1748631043494,-924.0,0.00026698,2]
[363228428,1748631043503,-556.0,0.00026698,2]
[363228430,1748631043514,-4068.0,0.00026698,2]
[363228432,1748631043524,-6929.0,0.00026698,2]
[363228434,1748631043535,-848.0,0.00026698,2]
[363228436,1748631043545,-882.0,0.00026698,2]
[363228439,1748631043555,-155.0,0.00026698,2]
[363228441,1748631043565,-155.0,0.00026698,2]
[363228443,1748631043574,-300.0,0.0002677,2]
[363228445,1748631043585,-400.0,0.0002677,2]
[363228447,1748631043596,-28678.9172478,0.00026819,3]
[363228448,1748631043605,-12808.6413524,0.00026819,3]
[363228449,1748631043615,-4096.81574722,0.00026839,3]
[363228497,1748631044164,-200.0,0.00026641,2]
[363228499,1748631044175,-172.73137025,0.00026839,3]
[363228501,1748631044185,-225.0,0.00026849,2]
[363228503,1748631044196,-225.0,0.00026849,2]
[363228505,1748631044207,-225.0,0.00026849,2]
[363228507,1748631044216,-0.61592975,0.00026849,2]
[363228663,1748631085999,182.85,0.00016712,2]
[363228664,1748631200527,512.0,0.00016,2]
[363228665,1748631564197,250.0,0.00015,2]
[363228666,1748631565308,300.0,0.00017,2]
[363228667,1748631566388,350.0,0.00019,2]
[363228668,1748631637974,261.12,0.00013699,2]
[363228779,1748632006124,-200.05215746,0.00020187,2]
[363228783,1748632144993,6594.02,0.0002,7]
[363228788,1748632154096,-1532.5044,0.0002,7]
[363228789,1748632170098,-69.68433745,0.0002,7]
[363228790,1748632170120,-61.06784254,0.00020187,2]
[363228791,1748632170142,-200.0,0.00020391,2]
[363228802,1748632231509,-200.0,0.00020797,2]
[363228803,1748632231521,-170.18152156,0.00021,2]
[363228804,1748632231533,-229.81847844,0.00021,2]
[363228805,1748632231543,-200.0,0.00021435,2]
[363228806,1748632231553,-38.22688989,0.00022,2]
[363228807,1748632231574,-112.77311011,0.00022,2]
[363228808,1748632231583,-150.0,0.00022,2]
[363228809,1748632231593,-347.82456298,0.00022106,2]
[363228810,1748632231602,-150.0,0.00022192,7]
[363228811,1748632231612,-250.0,0.00022206,2]
[363228812,1748632231622,-250.0,0.00022206,2]
[363228813,1748632231632,-200.0,0.00022206,2]
[363228814,1748632231641,-302.2,0.00022326,2]
[363228815,1748632231651,-303.19,0.00022326,2]
[363228816,1748632231661,-279.66145287,0.000225,2]
[363228817,1748632231672,-551.95854713,0.000225,2]
[363228818,1748632231682,-200.0,0.00022653,2]
[363228819,1748632231691,-1200.0,0.00022697,2]
[363228820,1748632231701,-300.0,0.00022697,2]
[363228821,1748632231710,-500.0,0.000227,2]
[363228822,1748632231719,-2088.98793231,0.000227,2]
[363228823,1748632231731,-435.92998049,0.000227,2]
[363228824,1748632231749,-265.08565925,0.000227,2]
[363228825,1748632231773,-775.80901143,0.000227,2]
[363229390,1748632237463,-10068.71861652,0.000227,2]
[363229391,1748632237472,-441.25938348,0.000227,2]
[363229393,1748632237484,-387.69264851,0.000227,2]
[363229395,1748632237496,-171.04796801,0.000227,2]
[363229397,1748632237505,-150.99,0.000227,2]
[363229399,1748632237515,-416.68223609,0.000227,2]
[363229401,1748632237529,-1083.88047786,0.000227,2]
[363229405,1748632237565,-437.03,0.000227,2]
[363229508,1748632239604,-2783.91728605,0.000227,2]
[363229510,1748632239614,-3241.78,0.000227,2]
[363229512,1748632239623,-347.82456298,0.00022753,2]
[363229514,1748632239632,-999.99,0.000229,2]
[363229516,1748632239641,-4157.80880737,0.000229,8]
[363229518,1748632239650,-450.0,0.00023,2]
[363229520,1748632239659,-151.0,0.00023014,7]
[363229522,1748632239668,-150.0,0.00023014,7]
[363229524,1748632239677,-634.0,0.00023068,2]
[363229526,1748632239686,-801.0,0.00023068,2]
[363229528,1748632239695,-1268.0,0.00023068,2]
[363229530,1748632239704,-924.0,0.00023068,2]
[363229532,1748632239713,-1466.0,0.00023068,2]
[363229534,1748632239722,-556.0,0.00023068,2]
[363229536,1748632239731,-588.0,0.00023068,2]
[363229538,1748632239741,-1155.0,0.00023068,2]
[363229540,1748632239750,-347.82456298,0.000234,2]
[363229542,1748632239759,-302.17,0.000235,2]
[363229544,1748632239768,-300.56,0.000235,2]
[363229546,1748632239777,-300.88,0.000235,2]
[363229548,1748632239786,-300.89,0.000235,2]
[363229550,1748632239795,-305.39,0.000235,2]
[363229552,1748632239805,-304.88,0.000235,2]
[363229554,1748632239814,-305.26,0.000235,2]
[363229556,1748632239823,-301.16,0.000235,2]
[363229559,1748632239838,-305.19,0.000235,2]
[363229563,1748632239854,-300.27,0.000235,2]
[363229567,1748632239867,-304.26,0.000235,2]
[363229569,1748632239883,-301.65,0.000235,2]
[363229572,1748632239901,-301.82,0.000235,2]
[363229575,1748632239916,-300.21,0.000235,2]
[363229577,1748632239930,-302.77,0.000235,2]
[363229580,1748632239942,-301.42,0.000235,2]
[363229582,1748632239956,-304.87,0.000235,2]
[363229585,1748632239973,-304.66,0.000235,2]
[363229588,1748632239987,-300.85,0.000235,2]
[363229590,1748632240001,-302.83,0.000235,2]
[363229593,1748632240016,-305.5,0.000235,2]
[363229596,1748632240032,-303.76,0.000235,2]
[363229598,1748632240045,-301.34,0.000235,2]
[363229601,1748632240059,-305.58,0.000235,2]
[363229604,1748632240074,-300.33,0.000235,2]
[363229606,1748632240087,-300.17,0.000235,2]
[363229608,1748632240100,-304.87,0.000235,2]
[363229611,1748632240113,-300.08,0.000235,2]
[363229613,1748632240129,-304.26,0.000235,2]
[363229616,1748632240140,-302.09,0.000235,2]
[363229618,1748632240153,-302.65,0.000235,2]
[363229621,1748632240168,-303.51,0.000235,2]
[363229623,1748632240180,-6263.08,0.000236,2]
[363229626,1748632240192,-4157.80880718,0.00023624,9]
[363229628,1748632240210,-178.301,0.00023698,2]
[363229631,1748632240222,-150.866,0.00023698,2]
[363229633,1748632240235,-183.345,0.00023698,2]
[363229635,1748632240247,-150.172,0.00023698,2]
[363229638,1748632240260,-150.0,0.00023698,2]
[363229640,1748632240272,-150.0,0.00023698,2]
[363229642,1748632240285,-941.0,0.00023698,2]
[363229643,1748632240298,-1314.0,0.00023698,2]
[363229644,1748632240311,-300.33,0.000237,2]
[363229645,1748632240324,-300.78,0.000237,2]
[363229646,1748632240337,-6929.0,0.00023737,2]
[363229647,1748632240350,-4068.0,0.00023737,2]
[363229648,1748632240363,-180.631,0.00023737,2]
[363229649,1748632240377,-284.369,0.00023737,2]
[363229650,1748632240391,-848.0,0.00023737,2]
[363229651,1748632240404,-882.0,0.00023737,2]
[363229653,1748632240417,-845.11,0.00023892,2]
[363229656,1748632240430,-714.61,0.00023995,2]
[363229658,1748632240444,-4353.76,0.000241,2]
[363229660,1748632240457,-2336.17,0.00024122,2]
[363229663,1748632240470,-151.0,0.00024164,7]
[363229665,1748632240483,-154.0,0.00024164,7]
[363229667,1748632240497,-702.96,0.00024169,2]
[363229670,1748632240510,-6263.08,0.000243,2]
[363229672,1748632240524,-4157.80880718,0.00024348,11]
[363229674,1748632240537,-2751.0,0.00024468,2]
[363229677,1748632240550,-231.47552679,0.00024565,2]
[363229679,1748632240562,-1115.157653,0.00024565,2]
[363229681,1748632240575,-151.0,0.00024565,2]
[363229684,1748632240587,-668.65185757,0.00024565,2]
[363229686,1748632240600,-207.4,0.00024565,2]
[363229689,1748632240617,-151.0,0.00024565,2]
[363229691,1748632240630,-200.0,0.00024641,2]
[363229694,1748632240643,-150.0,0.00024658,2]
[363229696,1748632240656,-1000.0,0.00024658,2]
[363229698,1748632240669,-150.0,0.00024658,2]
[363229701,1748632240682,-150.0,0.00024678,7]
[363229703,1748632240694,-282.55809693,0.00024685,2]
[363229706,1748632240708,-1450.95,0.00024719,2]
[363229708,1748632240721,-1680.0,0.00024761,2]
[363229710,1748632240734,-500.0,0.00025,2]
[363229713,1748632240747,-150.0,0.00025,2]
[363229715,1748632240760,-150.0,0.00025,2]
[363229718,1748632240773,-150.0,0.00025,2]
[363229720,1748632240786,-150.0,0.00025,2]
[363229723,1748632240798,-150.0,0.00025,2]
[363229725,1748632240811,-150.0,0.00025,2]
[363229727,1748632240825,-150.0,0.00025,2]
[363229730,1748632240838,-150.0,0.00025,2]
[363229732,1748632240851,-150.0,0.00025,2]
[363229735,1748632240865,-150.0,0.00025,2]
[363229737,1748632240878,-150.0,0.00025,2]
[363229739,1748632240891,-150.0,0.00025,2]
[363229742,1748632240905,-220.581,0.00025,2]
[363229744,1748632240919,-300.0,0.00025,2]
[363229746,1748632240932,-4157.80880718,0.00025072,12]
[363229749,1748632240945,-153.17477443,0.00025113,2]
[363229751,1748632240958,-251.43277903,0.00025175,2]
[363229754,1748632240971,-6263.08,0.000252,2]
[363229756,1748632240984,-151.0,0.00025205,2]
[363229759,1748632240996,-300.0,0.0002525,2]
[363229761,1748632241009,-280.0,0.000253,10]
[363229763,1748632241021,-169.31,0.00025461,2]
[363229766,1748632241034,-164.73,0.00025471,2]
[363229768,1748632241047,-849.63,0.00025548,120]
[363229771,1748632241060,-166.66,0.00025628,2]
[363229773,1748632241072,-771.0,0.00025644,2]
[363229775,1748632241085,-500.0,0.00025644,2]
[363229778,1748632241098,-500.0,0.00025644,2]
[363229780,1748632241112,-500.0,0.00025644,2]
[363229782,1748632241126,-500.0,0.00025644,2]
[363229785,1748632241140,-500.0,0.00025644,2]
[363229787,1748632241153,-500.0,0.00025644,2]
[363229790,1748632241166,-500.0,0.00025644,2]
[363229792,1748632241179,-500.0,0.00025644,2]
[363229795,1748632241191,-500.0,0.00025644,2]
[363229797,1748632241204,-500.0,0.00025644,2]
[363229799,1748632241217,-1500.0,0.00025644,120]
[363229802,1748632241230,-200.0,0.00025713,3]
[363229804,1748632241242,-152.0,0.00025753,2]
[363229806,1748632241255,-150.0,0.00025775,7]
[363229809,1748632241267,-4157.80880718,0.00025797,13]
[363229811,1748632241280,-250.0,0.00025859,2]
[363229814,1748632241294,-644.41377661,0.00025873,2]
[363229816,1748632241307,-693.3919763,0.00025934,2]
[363229818,1748632241320,-215.0738,0.00025934,2]
[363229821,1748632241332,-156.587,0.00025934,2]
[363229823,1748632241346,-634.0,0.00026068,2]
[363229825,1748632241359,-801.0,0.00026068,2]
[363229828,1748632241372,-1268.0,0.00026068,2]
[363229830,1748632241385,-924.0,0.00026068,2]
[363229833,1748632241397,-1466.0,0.00026068,2]
[363229835,1748632241410,-556.0,0.00026068,2]
[363229837,1748632241423,-588.0,0.00026068,2]
[363229840,1748632241436,-1155.0,0.00026068,2]
[363229842,1748632241451,-1000.0,0.00026085,2]
[363229845,1748632241463,-845.11,0.00026155,2]
[363229847,1748632241476,-6263.08,0.000262,2]
[363229849,1748632241489,-2000.0,0.000263,2]
[363229852,1748632241501,-153.0,0.00026301,2]
[363229854,1748632241514,-989.27223219,0.00026312,2]
[363229857,1748632241527,-1357.189807,0.00026312,6]
[363229859,1748632241541,-4157.80880718,0.00026521,15]
[363229861,1748632241554,-2541.96300551,0.00026598,2]
[363229864,1748632241566,-261.12,0.00026676,2]
[363229866,1748632241579,-150.0,0.00026698,2]
[363229868,1748632241592,-941.0,0.00026698,2]
[363229871,1748632241605,-1314.0,0.00026698,2]
[363229873,1748632241617,-500.0,0.00026736,2]
[363229875,1748632241629,-500.0,0.00026736,2]
[363229878,1748632241642,-500.0,0.00026736,2]
[363229880,1748632241654,-549.29604425,0.00026736,2]
[363229883,1748632241667,-401.93261135,0.00026736,2]
[363229885,1748632241679,-6929.0,0.00026737,2]
[363229887,1748632241691,-4068.0,0.00026737,2]
[363229890,1748632241704,-155.0,0.00026737,2]
[363229892,1748632241716,-848.0,0.00026737,2]
[363229894,1748632241727,-882.0,0.00026737,2]
[363229897,1748632241740,-300.0,0.0002677,2]
[363229899,1748632241752,-400.0,0.0002677,2]
[363229901,1748632241764,-200.0,0.00026784,5]
[363229904,1748632241777,-2500.0,0.00026836,2]
[363229906,1748632241792,-268.61,0.00026839,3]
[363229908,1748632241804,-224.38407025,0.00026849,2]
[363229911,1748632241817,-225.0,0.00026849,2]
[363229913,1748632241829,-150.0,0.00026849,2]
[363229916,1748632241842,-150.0,0.00026849,2]
[363229918,1748632241855,-150.0,0.00026849,2]
[363229920,1748632241868,-150.0,0.00026849,2]
[363229923,1748632241881,-150.0,0.00026849,2]
[363229925,1748632241891,-593.93479267,0.00026849,2]
[363229927,1748632241901,-571.57720624,0.00026849,2]
[363229929,1748632241911,-758.51593348,0.00026849,2]
[363229931,1748632241921,-632.25999931,0.00026849,2]
[363229933,1748632241930,-4069.86521736,0.00026849,2]
[363229935,1748632241939,-3454.66577,0.00026849,2]
[363229937,1748632241949,-500.0,0.00026849,2]
[363229939,1748632241959,-500.0,0.00026849,2]
[363229941,1748632241968,-154.0,0.00026849,2]
[363229943,1748632241978,-1400.0,0.00026851,2]
[363229945,1748632241987,-500.0,0.00026852,2]
[363229947,1748632241997,-600.0,0.00026858,2]
[363229949,1748632242007,-6900.0,0.00026859,2]
[363229999,1748632242412,-500.0,0.0002686,2]
[363230003,1748632242448,-400.0,0.0002686,2]
[363230007,1748632242462,-500.0,0.00026862,2]
[363230010,1748632242472,-500.0,0.00026867,2]
[363230012,1748632242481,-512.43439366,0.0002687,2]
[363230013,1748632242491,-500.0,0.00026873,2]
[363230015,1748632242500,-1700.0,0.00026875,2]
[363230017,1748632242509,-500.0,0.00026881,2]
[363230019,1748632242518,-600.0,0.00026881,2]
[363230021,1748632242527,-500.0,0.00026887,2]
[363230024,1748632242537,-500.0,0.00026894,2]
[363230026,1748632242546,-3900.0,0.00026896,2]
[363230028,1748632242555,-600.0,0.00026899,2]
[363230030,1748632242565,-400.0,0.000269,9]
[363230032,1748632242574,-1400.0,0.000269,2]
[363230034,1748632242583,-213.91418143,0.00026901,2]
[363230036,1748632242592,-709.84691532,0.00026906,2]
[363230037,1748632242601,-600.0,0.00026906,2]
[363230040,1748632242610,-1400.0,0.00026909,2]
[363230042,1748632242620,-214.6481834,0.00026915,2]
[363230044,1748632242629,-500.0,0.00026924,2]
[363230046,1748632242638,-500.0,0.00026925,2]
[363230048,1748632242647,-614.60909705,0.00026925,2]
[363230050,1748632242657,-306.26495963,0.00026926,2]
[363230052,1748632242666,-3900.0,0.00026927,2]
[363230054,1748632242675,-500.0,0.00026938,2]
[363230056,1748632242685,-500.0,0.00026938,2]
[363230057,1748632242694,-500.0,0.00026942,2]
[363230059,1748632242703,-500.0,0.00026946,2]
[363230061,1748632242712,-3900.0,0.00026947,2]
[363230063,1748632242722,-1400.0,0.00026956,2]
[363230065,1748632242730,-500.0,0.00026958,2]
[363230067,1748632242739,-1400.0,0.00026963,2]
[363230069,1748632242748,-500.0,0.00026964,2]
[363230071,1748632242757,-1400.0,0.00026969,2]
[363230073,1748632242766,-3900.0,0.00026978,2]
[363230076,1748632242776,-1400.0,0.00026979,2]
[363230078,1748632242785,-500.0,0.00026979,2]
[363230080,1748632242795,-6900.0,0.00026982,2]
[363230082,1748632242804,-500.0,0.00026983,2]
[363230084,1748632242813,-500.0,0.00026985,2]
[363230086,1748632242822,-3900.0,0.00026991,2]
[363230087,1748632242831,-500.0,0.00026993,2]
[363230090,1748632242841,-1456.333248,0.00027,2]
[363230092,1748632242851,-550.0,0.00027,2]
[363230094,1748632242861,-3900.0,0.00027004,2]
[363230096,1748632242871,-192.9661133,0.00027013,2]
[363230098,1748632242880,-2351.0,0.00027013,2]
[363230100,1748632242890,-500.0,0.00027015,2]
[363230102,1748632242899,-6900.0,0.0002702,2]
[363230104,1748632242908,-170.07706665,0.0002702,2]
[363230106,1748632242918,-6900.0,0.00027037,2]
[363230108,1748632242927,-500.0,0.00027044,2]
[363230110,1748632242936,-9711.71015701,0.00027059,2]
[363230112,1748632242946,-1400.0,0.0002707,2]
[363230114,1748632242955,-721.0,0.00027077,2]
[363230116,1748632242964,-6900.0,0.00027082,2]
[363230118,1748632242973,-500.0,0.00027084,2]
[363230120,1748632242982,-500.0,0.00027085,2]
[363230122,1748632242991,-500.0,0.00027085,2]
[363230124,1748632242999,-1208.41328291,0.00027087,2]
[363230126,1748632243008,-1400.0,0.00027091,2]
[363230128,1748632243017,-1400.0,0.00027096,2]
[363230130,1748632243026,-500.0,0.00027102,2]